bitfinex/quotes_BTCUSD_20250314
["timestamp","ask_amount","ask_price","bid_price","bid_amount"]
[1741948538935,0.38731706,83141.0,83140.0,0.00667476]
[1741948539138,0.240558,83140.0,83139.0,0.00667633]
[1741948539346,0.240558,83140.0,83137.0,0.240566]
[1741948539545,0.10488371,83140.0,83134.0,0.240573]
[1741948539747,0.240565,83138.0,83136.0,0.240569]
[1741948539948,0.240564,83138.0,83135.0,0.240571]
[1741948540131,0.240561,83139.0,83136.0,0.240569]
[1741948540325,0.240558,83140.0,83139.0,0.001]
[1741948540647,0.252585,83140.0,83139.0,0.001]
[1741948540893,0.240562,83139.0,83136.0,0.240569]
[1741948541275,0.3,83138.0,83136.0,0.240569]
[1741948542779,0.3,83139.0,83137.0,0.240566]
[1741948542954,0.01886537,83138.0,83137.0,0.240566]
[1741948543416,0.01886537,83138.0,83137.0,0.24724547]
[1741948543582,0.01886537,83138.0,83137.0,0.25927347]
[1741948544000,0.01886537,83138.0,83137.0,0.26027347]
[1741948544202,0.01886537,83138.0,83137.0,0.25927347]
[1741948544579,0.01886537,83138.0,83137.0,0.26127347]
[1741948544780,0.01458262,83141.0,83139.0,0.24056]
[1741948544989,0.01458262,83141.0,83140.0,0.00667514]
[1741948545193,0.01458262,83141.0,83137.0,0.242566]
[1741948545194,0.24056,83140.0,83137.0,0.242566]
[1741948545414,0.24056,83140.0,83138.0,0.240563]
[1741948546131,0.01458262,83141.0,83139.0,0.240558]
[1741948546635,0.01458262,83141.0,83140.0,0.240558]
[1741948546904,0.240558,83140.0,83138.0,0.240563]
[1741948547069,0.01458262,83141.0,83135.0,0.24057]
[1741948547070,0.240564,83138.0,83135.0,0.24057]
[1741948549317,0.25942811,83139.0,83136.0,0.240569]
[1741948549546,0.01886511,83139.0,83135.0,0.241572]
[1741948549818,0.540568,83137.0,83135.0,0.242571]
[1741948549979,0.540568,83137.0,83136.0,0.0001692]
[1741948550365,0.3,83137.0,83136.0,0.0011692]
[1741948550602,0.3,83138.0,83136.0,0.2427382]
[1741948550808,0.3,83138.0,83136.0,0.2417382]
[1741948551206,0.3,83138.0,83136.0,0.2407382]
[1741948551625,0.3,83138.0,83136.0,0.2427382]
[1741948552432,0.552592,83138.0,83136.0,0.0021692]
[1741948552638,0.240566,83137.0,83136.0,0.0021692]
[1741948552933,0.3,83138.0,83136.0,0.2437372]
[1741948553135,0.01886511,83139.0,83138.0,0.240563]
[1741948553558,0.01886511,83139.0,83138.0,0.252591]
[1741948554479,0.01886511,83139.0,83138.0,0.253591]
[1741948555471,0.01886511,83139.0,83138.0,0.241563]
[1741948555653,0.01886511,83139.0,83138.0,0.002]
[1741948558475,0.01886511,83139.0,83138.0,0.00979007]
[1741948558692,0.31886511,83139.0,83138.0,0.002]
[1741948559208,0.55942511,83139.0,83138.0,0.002]
[1741948560231,0.57145311,83139.0,83138.0,0.002]
[1741948564281,0.57179151,83139.0,83138.0,0.002]
[1741948566687,0.78919325,83139.0,83138.0,0.002]
[1741948566893,0.95400814,83139.0,83138.0,0.002]
[1741948567090,0.39886185,83128.0,83127.0,0.4041492]
[1741948569237,0.69886185,83128.0,83127.0,0.4041492]
[1741948569582,0.81882274,83128.0,83127.0,0.4061492]
[1741948569876,6.49935574,83128.0,83127.0,0.35906845]
[1741948570072,6.49935574,83128.0,83127.0,0.36106845]
[1741948570212,6.49935574,83128.0,83127.0,0.35562845]
[1741948570414,6.49935574,83128.0,83127.0,0.35362845]
[1741948570651,6.50824978,83128.0,83127.0,0.35162845]
[1741948571657,1.50085589,83128.0,83127.0,0.35162845]
[1741948571867,1.22725589,83128.0,83127.0,0.35162845]
[1741948572074,1.05555589,83128.0,83127.0,0.34689845]
[1741948572274,1.04495589,83128.0,83127.0,0.34689845]
[1741948572479,0.70775589,83128.0,83127.0,0.34689845]
[1741948572682,0.70775589,83128.0,83127.0,0.35538836]
[1741948572887,0.71175589,83128.0,83127.0,0.35538836]
[1741948573091,0.71997589,83128.0,83127.0,0.35538836]
[1741948573305,0.58505589,83128.0,83127.0,0.35538836]
[1741948573786,0.50709981,83128.0,83127.0,0.35538836]
[1741948573981,0.51912881,83128.0,83127.0,0.35538836]
[1741948574240,0.51012881,83128.0,83127.0,0.35538836]
[1741948574521,0.51312881,83128.0,83127.0,0.35298478]
[1741948575070,0.6330897,83128.0,83127.0,0.35298478]
[1741948575445,0.6360897,83128.0,83127.0,0.35298478]
[1741948575811,0.65063055,83128.0,83127.0,0.35298478]
[1741948577670,0.53066966,83128.0,83127.0,0.35298478]
[1741948581036,0.53066966,83128.0,83127.0,0.35303553]
[1741948583088,0.53066966,83128.0,83127.0,0.26295005]
[1741948583287,0.53066966,83128.0,83127.0,0.26954242]
[1741948583487,0.53066966,83128.0,83127.0,0.23643834]
[1741948584019,0.65063055,83128.0,83127.0,0.23643834]
[1741948584463,0.240662,83104.0,83103.0,0.0753]
[1741948584680,0.540662,83104.0,83103.0,0.3118]
[1741948585193,0.540662,83104.0,83103.0,0.31843631]
[1741948585694,0.540662,83104.0,83103.0,0.31853003]
[1741948585897,0.6464691,83104.0,83103.0,0.31853003]
[1741948586314,0.6464691,83104.0,83103.0,0.32253003]
[1741948586471,0.6464691,83104.0,83103.0,0.32653003]
[1741948586873,0.6585021,83104.0,83103.0,0.32653003]
[1741948587392,0.552695,83104.0,83103.0,0.32653003]
[1741948587743,0.552695,83104.0,83103.0,0.32269923]
[1741948587952,0.552695,83104.0,83103.0,0.24939923]
[1741948588302,0.552695,83104.0,83103.0,0.23876292]
[1741948588508,0.552695,83104.0,83103.0,0.24176292]
[1741948588713,0.67265589,83104.0,83103.0,0.24176292]
[1741948588929,0.68719674,83104.0,83103.0,0.24176292]
[1741948589248,0.68719674,83104.0,83103.0,0.23876292]
[1741948589463,0.68719674,83104.0,83103.0,0.23976292]
[1741948589833,0.68719674,83104.0,83103.0,0.23676292]
[1741948590183,0.68819674,83104.0,83103.0,0.23776292]
[1741948590392,0.68819674,83104.0,83103.0,0.23676292]
[1741948590824,0.68919674,83104.0,83103.0,0.23676292]
[1741948596754,0.56923585,83104.0,83103.0,0.23676292]
[1741948597957,0.002,83104.0,83103.0,0.31196292]
[1741948598164,0.002,83104.0,83103.0,0.55262792]
[1741948598409,0.002,83104.0,83103.0,0.31994446]
[1741948598836,0.002,83104.0,83103.0,0.57264246]
[1741948599056,0.241662,83104.0,83103.0,0.31994446]
[1741948599633,0.301,83104.0,83103.0,0.31994446]
[1741948599837,0.3,83104.0,83103.0,0.31994446]
[1741948600045,0.3,83104.0,83103.0,0.56060946]
[1741948602479,0.3,83104.0,83103.0,0.56360946]
[1741948603389,0.3,83104.0,83103.0,0.56660946]
[1741948604962,0.3,83104.0,83103.0,0.32594446]
[1741948605436,0.3,83104.0,83103.0,0.56660946]
[1741948606209,0.3,83104.0,83103.0,0.32594446]
[1741948606883,0.3,83104.0,83103.0,0.56660946]
[1741948607322,0.552695,83104.0,83103.0,0.32594446]
[1741948607493,0.552695,83104.0,83103.0,0.25074446]
[1741948608884,0.552695,83104.0,83103.0,0.24774446]
[1741948609085,0.552695,83104.0,83103.0,0.24874446]
[1741948609284,0.540662,83104.0,83103.0,0.24874446]
[1741948609619,0.3,83104.0,83103.0,0.24774446]
[1741948609820,0.3,83104.0,83103.0,0.48840946]
[1741948610138,0.27463035,83120.0,83119.0,0.252648]
[1741948610337,0.0003384,83127.0,83125.0,0.2406]
[1741948610511,0.009229,83127.0,83126.0,0.57634881]
[1741948610711,0.0003384,83127.0,83126.0,0.56431981]
[1741948611977,0.0003384,83127.0,83126.0,0.57734881]
[1741948612159,0.0003384,83127.0,83126.0,0.56531981]
[1741948612597,0.0003384,83127.0,83126.0,0.32472181]
[1741948613003,0.0003384,83127.0,83126.0,0.32772181]
[1741948613405,0.0003384,83127.0,83126.0,0.32672181]
[1741948613605,0.5409334,83127.0,83126.0,0.32372181]
[1741948613806,0.5409334,83127.0,83126.0,0.46064181]
[1741948614010,0.3003384,83127.0,83126.0,0.46064181]
[1741948614205,0.3003384,83127.0,83126.0,0.45864181]
[1741948614521,0.3003384,83127.0,83126.0,0.46164181]
[1741948614922,0.5409334,83127.0,83126.0,0.46564181]
[1741948615124,0.5409334,83127.0,83126.0,0.46264181]
[1741948615335,0.5409334,83127.0,83126.0,0.45864181]
[1741948615833,0.5409334,83127.0,83126.0,0.46164181]
[1741948616039,0.3003384,83127.0,83126.0,0.46164181]
[1741948616591,0.3003384,83127.0,83126.0,0.70223981]
[1741948616925,0.3003384,83127.0,83126.0,0.70423981]
[1741948617674,0.3003384,83127.0,83126.0,0.46364181]
[1741948618083,0.2409334,83128.0,83126.0,0.46364181]
[1741948618607,0.240595,83127.0,83126.0,0.46364181]
[1741948618806,0.0003384,83128.0,83126.0,0.46364181]
[1741948619022,0.0003384,83128.0,83126.0,0.46064181]
[1741948619234,0.422164,83127.0,83126.0,0.46064181]
[1741948619432,0.422164,83127.0,83126.0,0.46264181]
[1741948619817,0.422164,83127.0,83126.0,0.46064181]
[1741948620044,0.21007358,83127.0,83126.0,0.46064181]
[1741948620252,0.43863958,83127.0,83126.0,0.46064181]
[1741948620451,0.19804458,83127.0,83126.0,0.45864181]
[1741948620651,0.19804458,83127.0,83126.0,0.46164181]
[1741948620846,0.19804458,83127.0,83126.0,0.46364181]
[1741948621064,0.19804458,83127.0,83126.0,0.70223981]
[1741948621469,0.19804458,83127.0,83126.0,0.71526881]
[1741948621697,0.19804458,83127.0,83126.0,0.8352297]
[1741948622486,0.19804458,83127.0,83126.0,0.8322297]
[1741948622656,0.19804458,83127.0,83126.0,0.8785297]
[1741948623112,0.19804458,83127.0,83126.0,0.8795297]
[1741948623522,0.19804458,83127.0,83126.0,0.8815297]
[1741948623739,0.19804458,83127.0,83126.0,0.8775297]
[1741948623911,0.19804458,83127.0,83126.0,0.8875297]
[1741948624339,0.0003384,83128.0,83127.0,0.252624]
[1741948624340,9.8e-07,83128.0,83127.0,0.252624]
[1741948624542,9.8e-07,83128.0,83127.0,0.46458175]
[1741948625603,9.8e-07,83128.0,83127.0,0.46958175]
[1741948626197,9.8e-07,83128.0,83127.0,0.46458175]
[1741948626399,9.8e-07,83128.0,83127.0,0.47658175]
[1741948632915,9.8e-07,83128.0,83127.0,0.46458175]
[1741948633133,9.8e-07,83128.0,83127.0,0.47658175]
[1741948636172,9.8e-07,83128.0,83127.0,1.24054175]
[1741948641481,9.8e-07,83128.0,83127.0,0.47658175]
[1741948641714,9.8e-07,83128.0,83127.0,0.61142175]
[1741948643898,9.8e-07,83128.0,83127.0,0.61142175]
[1741948647281,9.8e-07,83128.0,83127.0,0.61176035]
[1741948649924,9.8e-07,83128.0,83127.0,0.61161535]
[1741948656672,9.8e-07,83128.0,83127.0,0.61253535]
[1741948657600,9.8e-07,83128.0,83127.0,2.11253535]
[1741948657803,9.8e-07,83128.0,83127.0,2.10653535]
[1741948658012,9.8e-07,83128.0,83127.0,2.10053535]
[1741948658214,9.8e-07,83128.0,83127.0,2.10653535]
[1741948658448,9.8e-07,83128.0,83127.0,2.11253535]
[1741948658938,9.8e-07,83128.0,83127.0,0.61253535]
[1741948659926,9.8e-07,83128.0,83127.0,0.61281535]
[1741948661936,9.8e-07,83128.0,83127.0,0.47677535]
[1741948662186,9.8e-07,83128.0,83127.0,0.61281535]
[1741948662387,9.8e-07,83128.0,83127.0,0.47677535]
[1741948662538,9.8e-07,83128.0,83127.0,0.61289535]
[1741948664696,9.8e-07,83128.0,83127.0,0.61285535]
[1741948665967,9.8e-07,83128.0,83127.0,0.56525535]
[1741948666967,9.8e-07,83128.0,83127.0,0.56517535]
[1741948670284,9.8e-07,83128.0,83127.0,0.56501535]
[1741948670488,9.8e-07,83128.0,83127.0,0.42917535]
[1741948670691,9.8e-07,83128.0,83127.0,0.56501535]
[1741948670886,9.8e-07,83128.0,83127.0,0.42917535]
[1741948671146,9.8e-07,83128.0,83127.0,0.56497535]
[1741948672737,9.8e-07,83128.0,83127.0,0.42917535]
[1741948673000,9.8e-07,83128.0,83127.0,0.56493535]
[1741948673737,9.8e-07,83128.0,83127.0,0.42917535]
[1741948673937,9.8e-07,83128.0,83127.0,0.56489535]
[1741948674998,9.8e-07,83128.0,83127.0,0.48625535]
[1741948676742,9.8e-07,83128.0,83127.0,0.34977535]
[1741948677068,9.8e-07,83128.0,83127.0,0.48625535]
[1741948681875,9.8e-07,83128.0,83127.0,0.48613535]
[1741948685624,9.8e-07,83128.0,83127.0,0.48629535]
[1741948686265,9.8e-07,83128.0,83127.0,0.48625535]
[1741948687497,9.8e-07,83128.0,83127.0,0.48621535]
[1741948688839,9.8e-07,83128.0,83127.0,0.34977535]
[1741948689038,9.8e-07,83128.0,83127.0,0.48613535]
[1741948689254,9.8e-07,83128.0,83127.0,0.34977535]
[1741948689425,9.8e-07,83128.0,83127.0,0.48613535]
[1741948689621,9.8e-07,83128.0,83127.0,0.34977535]
[1741948689825,9.8e-07,83128.0,83127.0,0.48609535]
[1741948690211,9.8e-07,83128.0,83127.0,0.34977535]
[1741948690564,9.8e-07,83128.0,83127.0,0.48609535]
[1741948690705,9.8e-07,83128.0,83127.0,0.34977535]
[1741948691128,9.8e-07,83128.0,83127.0,0.48605535]
[1741948691331,9.8e-07,83128.0,83127.0,0.34977535]
[1741948691798,9.8e-07,83128.0,83127.0,0.48609535]
[1741948693302,9.8e-07,83128.0,83127.0,0.48601535]
[1741948694270,9.8e-07,83128.0,83127.0,0.48597535]
[1741948696910,9.8e-07,83128.0,83127.0,0.48593535]
[1741948697312,9.8e-07,83128.0,83127.0,0.48589535]
[1741948697648,9.8e-07,83128.0,83127.0,0.34977535]
[1741948698322,9.8e-07,83128.0,83127.0,0.48585535]
[1741948698521,9.8e-07,83128.0,83127.0,0.34977535]
[1741948698678,9.8e-07,83128.0,83127.0,0.48585535]
[1741948698856,9.8e-07,83128.0,83127.0,0.48581535]
[1741948700040,9.8e-07,83128.0,83127.0,0.34977535]
[1741948700776,9.8e-07,83128.0,83127.0,0.48577535]
[1741948701147,9.8e-07,83128.0,83127.0,0.48573535]
[1741948703063,9.8e-07,83128.0,83127.0,0.51733054]
[1741948703262,9.8e-07,83128.0,83127.0,0.47973535]
[1741948703481,9.8e-07,83128.0,83127.0,0.48573535]
[1741948703841,9.8e-07,83128.0,83127.0,0.47973535]
[1741948704040,9.8e-07,83128.0,83127.0,1.24365535]
[1741948704552,9.8e-07,83128.0,83127.0,1.24965535]
[1741948710400,0.01614512,83146.0,83127.0,1.24965535]
[1741948710401,0.240543,83145.0,83142.0,0.240551]
[1741948710612,0.240538,83147.0,83144.0,0.2365]
[1741948710899,0.252564,83147.0,83145.0,0.00804641]
[1741948711101,0.24054,83146.0,83145.0,0.00804641]
[1741948711480,0.25668485,83146.0,83145.0,0.00804641]
[1741948711717,0.26876607,83146.0,83145.0,0.09660495]
[1741948712405,0.26876607,83146.0,83145.0,0.10160495]
[1741948712603,0.26876607,83146.0,83145.0,0.01304641]
[1741948713190,0.26876607,83146.0,83145.0,0.01804641]
[1741948717042,0.26876607,83146.0,83145.0,0.01838501]
[1741948717478,0.09081289,83146.0,83145.0,0.01838501]
[1741948717886,0.09098219,83146.0,83145.0,0.01838501]
[1741948722096,0.09098219,83146.0,83145.0,0.01838501]
[1741948731796,0.21848219,83146.0,83145.0,0.01838501]
[1741948731971,0.23302304,83146.0,83145.0,0.01838501]
[1741948732725,0.23302304,83146.0,83145.0,0.00838501]
[1741948733006,0.23302304,83146.0,83145.0,0.00938501]
[1741948733316,0.23302304,83146.0,83145.0,0.01038501]
[1741948733465,0.21848219,83146.0,83145.0,0.00838501]
[1741948733654,0.21848219,83146.0,83145.0,0.00938501]
[1741948734006,0.01636837,83146.0,83145.0,0.25192801]
[1741948734149,0.01636837,83146.0,83145.0,0.01138501]
[1741948734355,0.01636837,83146.0,83145.0,0.01560801]
[1741948734997,0.25690837,83146.0,83145.0,0.01460801]
[1741948735195,0.25690837,83146.0,83145.0,0.01660801]
[1741948735413,0.26893537,83146.0,83145.0,0.01460801]
[1741948735575,0.26893537,83146.0,83145.0,0.01260801]
[1741948735757,0.26893537,83146.0,83145.0,0.01460801]
[1741948736158,0.35153537,83146.0,83145.0,0.01260801]
[1741948736683,0.35153537,83146.0,83145.0,0.02060801]
[1741948737285,0.51020669,83146.0,83145.0,0.02060801]
[1741948737662,0.51020669,83146.0,83145.0,0.0125616]
[1741948738015,0.39923537,83146.0,83145.0,0.0125616]
[1741948738219,0.39923537,83146.0,83145.0,0.01775361]
[1741948738421,0.39923537,83146.0,83145.0,0.01375361]
[1741948738799,0.39923537,83146.0,83145.0,0.01475361]
[1741948739204,0.39923537,83146.0,83145.0,0.01075361]
[1741948739635,0.39923537,83146.0,83145.0,0.01275361]
[1741948741030,0.52951754,83146.0,83145.0,0.01275361]
[1741948741239,0.52951754,83146.0,83145.0,0.0075616]
[1741948741794,0.41377622,83146.0,83145.0,0.0075616]
[1741948746982,0.41377622,83146.0,83145.0,0.0065616]
[1741948747327,0.34681085,83145.0,83144.0,6e-07]
[1741948747890,0.06261049,83145.0,83144.0,6e-07]
[1741948748077,0.15228342,83145.0,83144.0,6e-07]
[1741948748313,0.40485342,83145.0,83144.0,6e-07]
[1741948748513,0.252621,83128.0,83127.0,0.0003386]
[1741948748735,0.298721,83128.0,83127.0,0.0003386]
[1741948749339,0.240592,83128.0,83127.0,0.0003386]
[1741948749554,0.252621,83128.0,83127.0,0.0003386]
[1741948749792,0.252621,83128.0,83127.0,0.0013386]
[1741948749996,0.252621,83128.0,83127.0,0.0023386]
[1741948750472,0.012029,83130.0,83127.0,0.0013386]
[1741948750716,0.252621,83128.0,83127.0,0.0023386]
[1741948750883,0.252621,83128.0,83127.0,0.0043386]
[1741948752099,0.252621,83128.0,83127.0,0.0023386]
[1741948752295,0.252621,83128.0,83127.0,0.0003386]
[1741948752699,0.252621,83128.0,83127.0,0.0043386]
[1741948753097,0.252621,83128.0,83127.0,0.0033386]
[1741948753523,0.240581,83132.0,83127.0,0.0063386]
[1741948753735,0.012028,83135.0,83129.0,0.240589]
[1741948754042,0.18003986,83137.0,83132.0,0.240578]
[1741948754174,0.42060886,83137.0,83133.0,0.240576]
[1741948754378,0.240569,83137.0,83133.0,0.00521919]
[1741948754590,0.240572,83136.0,83133.0,0.00521919]
[1741948754788,0.240575,83134.0,83133.0,0.00521919]
[1741948754994,0.240586,83131.0,83128.0,0.322291]
[1741948755261,0.240581,83132.0,83128.0,0.322291]
[1741948755645,0.240589,83129.0,83128.0,0.0817]
[1741948756185,0.240587,83130.0,83128.0,0.0817]
[1741948756388,0.252611,83132.0,83128.0,0.325292]
[1741948756528,0.240581,83132.0,83129.0,0.240589]
[1741948756883,0.012029,83131.0,83128.0,0.0887]
[1741948757374,0.240587,83130.0,83128.0,0.0847]
[1741948757726,0.240587,83130.0,83128.0,0.0817]
[1741948759165,0.240587,83130.0,83128.0,0.0847]
[1741948759373,0.240578,83133.0,83128.0,0.42041508]
[1741948759571,0.240578,83133.0,83128.0,0.42341508]
[1741948759848,0.240578,83133.0,83129.0,0.240587]
[1741948760317,0.240578,83133.0,83130.0,0.240585]
[1741948760484,0.252606,83133.0,83128.0,0.0817]
[1741948760698,0.252606,83133.0,83128.0,0.0877]
[1741948760872,0.240584,83132.0,83128.0,0.0877]
[1741948763349,0.252576,83143.0,83139.0,0.24056]
[1741948763550,0.01636837,83146.0,83145.0,0.240543]
[1741948763761,0.01636837,83146.0,83145.0,0.2980049]
[1741948764094,0.01636837,83146.0,83145.0,0.1947019]
[1741948764447,0.01636837,83146.0,83145.0,0.13724]
[1741948766401,0.01636837,83146.0,83145.0,0.14124]
[1741948766991,0.01636837,83146.0,83145.0,0.14524]
[1741948768319,0.01636837,83146.0,83145.0,0.15119974]
[1741948770952,0.01636837,83146.0,83145.0,0.19629974]
[1741948771322,0.01636837,83146.0,83145.0,0.43684274]
[1741948771522,0.01636837,83146.0,83145.0,0.55680363]
[1741948772287,0.01636837,83146.0,83145.0,0.31626063]
[1741948772484,0.01636837,83146.0,83145.0,0.19629974]
[1741948772694,0.01636837,83146.0,83145.0,0.43684274]
[1741948772901,0.01636837,83146.0,83145.0,0.19629974]
[1741948773465,0.01636837,83146.0,83145.0,0.43981777]
[1741948774795,0.01636837,83146.0,83145.0,0.19927477]
[1741948775144,0.01636837,83146.0,83145.0,0.43981777]
[1741948775646,0.01636837,83146.0,83145.0,0.55689695]
[1741948776230,0.01636837,83146.0,83145.0,0.45184477]
[1741948776545,0.01636837,83146.0,83145.0,0.44784477]
[1741948777005,0.01636837,83146.0,83145.0,0.45384477]
[1741948777208,0.01636837,83146.0,83145.0,0.44784477]
[1741948777411,0.01636837,83146.0,83145.0,0.44384477]
[1741948777625,0.00022352,83146.0,83145.0,0.65360566]
[1741948779078,0.00022352,83146.0,83145.0,0.67358975]
[1741948779280,0.00022352,83146.0,83145.0,0.64860566]
[1741948779482,0.00022352,83146.0,83145.0,0.65460566]
[1741948779917,0.00022352,83146.0,83145.0,0.64960566]
[1741948780121,0.00022352,83146.0,83145.0,0.65460566]
[1741948780326,0.00022352,83146.0,83145.0,0.64860566]
[1741948780836,0.00022352,83146.0,83145.0,0.64960566]
[1741948781046,0.00022352,83146.0,83145.0,0.65560566]
[1741948782197,0.00022352,83146.0,83145.0,0.67590491]
[1741948782328,0.00022352,83146.0,83145.0,0.69996809]
[1741948783819,0.00022352,83146.0,83145.0,0.67966884]
[1741948785271,5.2e-07,83146.0,83145.0,0.67966884]
[1741948785530,9.2e-07,83151.0,83150.0,0.379955]
[1741948785698,5.02e-05,83151.0,83150.0,0.384955]
[1741948785907,6e-07,83152.0,83151.0,0.307552]
[1741948786119,6e-07,83152.0,83151.0,0.431752]
[1741948786320,6e-07,83152.0,83151.0,0.44063708]
[1741948786489,6e-07,83152.0,83151.0,0.56059797]
[1741948787489,6e-07,83152.0,83151.0,0.56659797]
[1741948787875,0.0003388,83191.0,83181.0,0.32836]
[1741948788098,0.0003388,83191.0,83181.0,0.4656]
[1741948788375,0.00057917,83182.0,83181.0,0.55123178]
[1741948789218,0.00057917,83182.0,83181.0,0.57364833]
[1741948789758,0.00057917,83182.0,83181.0,0.57964833]
[1741948790060,0.00057917,83182.0,83181.0,0.58564833]
[1741948790861,0.00057917,83182.0,83181.0,0.60969896]
[1741948793667,0.00057917,83182.0,83181.0,0.53286131]
[1741948794188,0.00057917,83182.0,83181.0,0.28364968]
[1741948794391,0.00057917,83182.0,83181.0,0.43371068]
[1741948796887,0.00057917,83182.0,83181.0,0.29567068]
[1741948797091,0.00057917,83182.0,83181.0,0.43391068]
[1741948797290,0.00057917,83182.0,83181.0,0.55387157]
[1741948799620,0.00057917,83182.0,83181.0,0.43391068]
[1741948804828,0.00057917,83182.0,83181.0,0.04321068]
[1741948804985,0.00057917,83182.0,83181.0,0.42228968]
[1741948805200,0.00057917,83182.0,83181.0,0.43431068]
[1741948806940,0.16087323,83191.0,83184.0,0.252449]
[1741948807146,0.240417,83189.0,83186.0,0.240424]
[1741948807499,0.240417,83189.0,83182.0,0.240436]
[1741948807500,0.240419,83188.0,83187.0,0.00875722]
[1741948807635,0.240419,83188.0,83187.0,0.03117377]
[1741948807860,0.240419,83188.0,83187.0,0.02241655]
[1741948808065,0.252439,83188.0,83187.0,0.03117377]
[1741948808264,0.252439,83188.0,83187.0,0.03057377]
[1741948808417,0.252439,83188.0,83187.0,0.35607377]
[1741948808656,0.252439,83188.0,83187.0,0.57307377]
[1741948808859,0.2523389,83188.0,83187.0,0.57307377]
[1741948809068,0.34477975,83188.0,83187.0,0.57307377]
[1741948809262,0.39417975,83188.0,83187.0,0.57307377]
[1741948810114,0.39417975,83188.0,83187.0,0.55125722]
[1741948810328,0.39417975,83188.0,83187.0,0.56125722]
[1741948810469,0.39417975,83188.0,83187.0,0.55725722]
[1741948810870,0.39417975,83188.0,83187.0,0.55225722]
[1741948811158,0.39417975,83188.0,83187.0,0.55325722]
[1741948812475,0.15386085,83188.0,83187.0,0.55325722]
[1741948812595,0.39427985,83188.0,83187.0,0.55325722]
[1741948813796,0.511467,83188.0,83187.0,0.55325722]
[1741948814002,0.39427985,83188.0,83187.0,0.55325722]
[1741948815328,0.39444915,83188.0,83187.0,0.55325722]
[1741948824703,0.31654915,83188.0,83187.0,0.55325722]
[1741948826857,0.240419,83188.0,83187.0,0.55325722]
[1741948827060,0.240419,83188.0,83187.0,0.55359562]
[1741948827259,0.2526082,83188.0,83187.0,0.55359562]
[1741948828868,0.0121892,83188.0,83187.0,0.63669562]
[1741948829016,0.2526082,83188.0,83187.0,0.55359562]
[1741948829918,0.2526082,83188.0,83187.0,0.55259562]
[1741948830126,0.2526082,83188.0,83187.0,0.55159562]
[1741948830332,0.2526082,83188.0,83187.0,0.55359562]
[1741948830736,0.2526082,83188.0,83187.0,0.55159562]
[1741948830913,0.2526082,83188.0,83187.0,0.55359562]
[1741948831992,0.0001692,83188.0,83187.0,0.5508265]
[1741948832146,0.0001692,83188.0,83187.0,0.7912485]
[1741948832345,0.0001692,83188.0,83187.0,0.96339485]
[1741948832553,0.0001692,83188.0,83187.0,0.71295185]
[1741948832749,0.2405882,83188.0,83187.0,0.73539083]
[1741948832993,0.2405882,83188.0,83187.0,0.65626548]
[1741948833219,0.2526082,83188.0,83187.0,0.65226548]
[1741948833466,0.2526082,83188.0,83187.0,0.65526548]
[1741948833701,0.2526082,83188.0,83187.0,0.65826548]
[1741948835251,0.0001692,83188.0,83187.0,0.65826548]
[1741948835970,0.0001692,83188.0,83187.0,0.82468673]
[1741948836168,0.0001692,83188.0,83187.0,1.06510873]
[1741948836743,0.0001692,83188.0,83187.0,1.05910873]
[1741948837248,0.0001692,83188.0,83187.0,1.06510873]
[1741948837499,0.0001692,83188.0,83187.0,1.05008773]
[1741948837748,0.0001692,83188.0,83187.0,1.05108773]
[1741948837945,0.0001692,83188.0,83187.0,1.05508773]
[1741948839810,0.0001692,83188.0,83187.0,0.95008748]
[1741948841219,0.0001692,83188.0,83187.0,0.96210848]
[1741948841572,0.0001692,83188.0,83187.0,1.37560848]
[1741948842256,0.0001692,83188.0,83187.0,1.36358748]
[1741948846171,0.0001692,83188.0,83187.0,1.26156548]
[1741948846377,0.2405882,83188.0,83187.0,1.26156548]
[1741948846643,0.0001692,83188.0,83187.0,1.26156548]
[1741948846796,0.0001692,83188.0,83187.0,1.50198748]
[1741948846996,0.0001692,83188.0,83187.0,1.63396937]
[1741948847633,0.0001692,83188.0,83187.0,1.62194837]
[1741948847991,0.0001692,83188.0,83187.0,1.50198748]
[1741948848255,0.0001692,83188.0,83187.0,1.51400848]
[1741948850487,0.0001692,83188.0,83187.0,1.26156548]
[1741948850691,0.0001692,83188.0,83187.0,1.25756548]
[1741948850888,0.2405882,83188.0,83187.0,1.25756548]
[1741948851085,0.2405882,83188.0,83187.0,1.26256548]
[1741948851290,0.2526082,83188.0,83187.0,1.26256548]
[1741948851813,0.2526082,83188.0,83187.0,1.25856548]
[1741948852183,0.24487532,83188.0,83187.0,1.26356548]
[1741948852384,0.24487532,83188.0,83187.0,1.38352637]
[1741948854399,0.24487532,83188.0,83187.0,1.36108739]
[1741948855815,0.24487532,83188.0,83187.0,1.2411265]
[1741948856950,0.23285532,83188.0,83187.0,1.2411265]
[1741948857107,0.23285532,83188.0,83187.0,1.1027265]
[1741948857307,0.23285532,83188.0,83187.0,1.2407265]
[1741948859478,0.0001692,83189.0,83188.0,0.240419]
[1741948859635,0.0001692,83189.0,83187.0,1.4931695]
[1741948859822,0.0001692,83189.0,83188.0,0.00625215]
[1741948860479,0.0001692,83189.0,83188.0,0.24667115]
[1741948860718,0.0001692,83189.0,83188.0,0.25167115]
[1741948860926,0.0001692,83189.0,83188.0,0.37163204]
[1741948861080,0.0001692,83189.0,83188.0,0.38365204]
[1741948862779,0.0001692,83189.0,83188.0,0.46435204]
[1741948862984,0.0001692,83189.0,83188.0,0.51145204]
[1741948863625,0.0001692,83189.0,83188.0,0.51645204]
[1741948864027,0.0001692,83189.0,83188.0,0.51279044]
[1741948864348,0.0001692,83189.0,83188.0,0.51879044]
[1741948864530,0.0001692,83189.0,83188.0,0.51279044]
[1741948864734,0.0001692,83189.0,83188.0,0.51879044]
[1741948865646,0.0001692,83189.0,83188.0,0.54124198]
[1741948867337,0.0001692,83189.0,83188.0,0.54624198]
[1741948868181,0.0001692,83189.0,83188.0,0.54024198]
[1741948868568,0.0001692,83189.0,83188.0,0.54624198]
[1741948868762,0.0001692,83189.0,83188.0,0.54024198]
[1741948869467,0.0001692,83189.0,83188.0,0.53424198]
[1741948869652,0.0001692,83189.0,83188.0,0.54024198]
[1741948869998,0.0001692,83189.0,83188.0,0.54878283]
[1741948870222,0.0001692,83189.0,83188.0,0.55478283]
[1741948870581,0.5,83197.0,83194.0,0.005]
[1741948870791,0.50004428,83197.0,83196.0,0.373615]
[1741948871002,0.50004428,83197.0,83196.0,0.39839173]
[1741948871411,0.30324574,83197.0,83196.0,0.40339173]
[1741948871612,7.4e-07,83197.0,83196.0,0.41793258]
[1741948871828,5e-07,83212.0,83211.0,0.03155785]
[1741948872051,5e-07,83212.0,83211.0,1.25435905]
[1741948872287,0.0008,83229.0,83226.0,0.0788]
[1741948872519,0.0008,83229.0,83228.0,0.956]
[1741948872767,0.0008443,83229.0,83228.0,1.0048]
[1741948872974,0.0008443,83229.0,83228.0,1.02300425]
[1741948873172,0.01784956,83238.0,83232.0,0.012014]
[1741948873371,0.012013,83241.0,83233.0,0.00618304]